bitfinex-derivatives/quotes_BTCF0:USTF0_20240923
["timestamp","ask_amount","ask_price","bid_price","bid_amount"]
[1727096594428,9.5e-07,63339.0,63338.0,4.32268226]
[1727096594625,9.5e-07,63339.0,63338.0,4.30290283]
[1727096595235,9.5e-07,63339.0,63338.0,4.42912889]
[1727096597337,9.5e-07,63339.0,63338.0,4.22394983]
[1727096597647,9.5e-07,63339.0,63338.0,3.70290283]
[1727096598439,9.5e-07,63339.0,63338.0,4.30290283]
[1727096598831,9.5e-07,63339.0,63338.0,3.82926283]
[1727096599229,9.5e-07,63339.0,63338.0,4.06407409]
[1727096599530,0.0459,63346.0,63345.0,0.236832]
[1727096599733,0.0459,63346.0,63345.0,0.89735334]
[1727096600739,0.0569,63346.0,63345.0,0.89735334]
[1727096601741,0.02251633,63346.0,63345.0,1.03606671]
[1727096603627,0.02251633,63346.0,63345.0,1.24123677]
[1727096603945,0.02251633,63346.0,63345.0,1.11501071]
[1727096604531,0.0037,63353.0,63352.0,0.236805]
[1727096604740,0.0037,63360.0,63359.0,0.157854]
[1727096605039,0.1455,63364.0,63363.0,0.078922]
[1727096605348,0.1455,63364.0,63363.0,0.17916159]
[1727096606939,0.1455,63364.0,63363.0,0.27366695]
[1727096607135,0.1455,63364.0,63363.0,0.17916159]
[1727096607450,0.1595,63364.0,63363.0,0.17916159]
[1727096607631,0.1725,63364.0,63363.0,0.27465605]
[1727096607837,0.0755,63364.0,63363.0,0.37750472]
[1727096608635,0.0755,63364.0,63363.0,0.158844]
[1727096609148,0.015,63364.0,63363.0,0.39528444]
[1727096609345,0.015,63364.0,63363.0,0.47420644]
[1727096609648,0.0037,63371.0,63370.0,0.157826]
[1727096609844,0.045,63373.0,63372.0,0.157822]
[1727096610037,0.045,63373.0,63372.0,0.237822]
[1727096610443,0.045,63373.0,63372.0,0.47346387]
[1727096611446,0.045,63373.0,63372.0,0.47446387]
[1727096611650,0.056,63373.0,63372.0,0.47446387]
[1727096612449,0.056,63373.0,63372.0,0.52446387]
[1727096617849,0.011,63373.0,63372.0,0.52446387]
[1727096618556,0.011,63373.0,63372.0,0.54000459]
[1727096618852,0.011,63373.0,63372.0,0.60294689]
[1727096619056,0.011,63373.0,63372.0,0.54000459]
[1727096619258,0.011,63373.0,63372.0,0.60294689]
[1727096619456,0.011,63373.0,63372.0,0.61891559]
[1727096619649,0.011,63373.0,63372.0,0.68085789]
[1727096619842,0.011,63373.0,63372.0,0.61791559]
[1727096620257,0.094,63377.0,63376.0,0.157812]
[1727096620458,0.094,63377.0,63376.0,0.648612]
[1727096621959,0.107,63377.0,63376.0,0.650612]
[1727096622262,0.0517,63382.0,63376.0,0.650612]
[1727096622263,0.0037,63382.0,63381.0,0.078899]
[1727096622556,0.00236691,63393.0,63381.0,0.078899]
[1727096622557,0.0037,63386.0,63385.0,0.078894]
[1727096622759,0.0965,63391.0,63390.0,0.078888]
[1727096622945,0.0965,63391.0,63390.0,0.439688]
[1727096624448,0.0965,63391.0,63390.0,0.519576]
[1727096624449,0.1105,63391.0,63390.0,0.519576]
[1727096624849,0.1105,63391.0,63390.0,0.520576]
[1727096625161,0.0607,63391.0,63390.0,0.520576]
[1727096625356,0.014,63391.0,63390.0,0.56763316]
[1727096625857,0.014,63391.0,63390.0,0.520576]
[1727096626154,0.014,63391.0,63390.0,0.75736981]
[1727096626361,0.014,63391.0,63390.0,0.80438122]
[1727096626659,0.014,63391.0,63390.0,2.25736981]
[1727096626849,0.0037,63398.0,63397.0,0.078879]
[1727096627049,0.1377,63401.0,63397.0,0.078879]
[1727096627050,0.1377,63401.0,63400.0,0.078876]
[1727096627453,0.0037,63408.0,63397.0,0.49168]
[1727096627644,0.0037,63408.0,63407.0,0.569667]
[1727096627842,0.0477,63411.0,63407.0,0.4908]
[1727096628046,0.0477,63411.0,63410.0,0.078863]
[1727096629157,0.0477,63411.0,63407.0,0.36372]
[1727096629357,0.0477,63411.0,63407.0,0.002]
[1727096629560,0.0477,63411.0,63403.0,0.3616]
[1727096629858,0.0477,63411.0,63403.0,0.3608]
[1727096630158,0.0477,63411.0,63410.0,0.001]
[1727096630551,0.0477,63411.0,63410.0,0.002]
[1727096630552,1.12082,63411.0,63410.0,0.002]
[1727096630964,0.52082,63411.0,63410.0,0.002]
[1727096631352,0.0477,63411.0,63410.0,0.002]
[1727096631552,0.0487,63411.0,63410.0,0.001]
[1727096631848,0.0487,63411.0,63408.0,0.05813701]
[1727096631849,0.11897541,63411.0,63408.0,0.05813701]
[1727096632157,0.07027541,63410.0,63408.0,0.13700201]
[1727096633352,0.07227541,63410.0,63408.0,0.13800201]
[1727096633553,0.07027541,63409.0,63408.0,0.13900201]
[1727096634254,0.07027541,63409.0,63408.0,0.080865]
[1727096634456,1.22225941,63409.0,63408.0,0.002]
[1727096634857,0.078868,63407.0,63404.0,0.07887]
[1727096635161,0.07027541,63406.0,63404.0,0.07887]
[1727096635459,0.078868,63407.0,63404.0,0.07887]
[1727096635460,0.07027541,63405.0,63404.0,0.07887]
[1727096635657,0.07027541,63405.0,63403.0,0.01539855]
[1727096635857,0.02556834,63404.0,63402.0,0.078872]
[1727096636656,0.02556834,63404.0,63403.0,0.078872]
[1727096637157,0.02556834,63404.0,63394.0,0.08124767]
[1727096637158,0.078873,63402.0,63396.0,0.3608]
[1727096637362,0.06958741,63401.0,63398.0,0.13]
[1727096637559,0.02556834,63400.0,63399.0,0.078877]
[1727096637857,0.002,63405.0,63404.0,0.001]
[1727096638067,0.18137994,63405.0,63404.0,0.001]
[1727096638252,0.59585282,63405.0,63404.0,0.001]
[1727096638560,0.07162748,63405.0,63404.0,0.001]
[1727096638763,0.002,63405.0,63404.0,0.001]
[1727096638963,0.002,63405.0,63403.0,0.078872]
[1727096638964,0.078868,63406.0,63403.0,0.078872]
[1727096639146,0.078868,63406.0,63403.0,0.12588237]
[1727096640561,0.078868,63406.0,63404.0,0.001]
[1727096641150,0.002,63405.0,63404.0,0.210871]
[1727096641354,0.002,63405.0,63404.0,0.25688137]
[1727096641753,0.002,63406.0,63404.0,0.25688137]
[1727096641957,0.002,63406.0,63405.0,0.04701037]
[1727096642361,0.078868,63406.0,63405.0,0.04701037]
[1727096642970,0.080868,63406.0,63405.0,0.04701037]
[1727096643164,0.078869,63405.0,63404.0,0.002]
[1727096643656,0.552029,63405.0,63404.0,0.002]
[1727096643860,0.552029,63405.0,63404.0,0.001]
[1727096644665,0.552029,63405.0,63403.0,0.078871]
[1727096644854,0.078869,63405.0,63403.0,0.078871]
[1727096645054,0.078869,63405.0,63404.0,0.078871]
[1727096645255,0.002,63405.0,63404.0,0.080871]
[1727096645463,0.002,63405.0,63404.0,0.210871]
[1727096645958,0.3608,63407.0,63406.0,0.078868]
[1727096646363,0.3608,63407.0,63406.0,0.1259884]
[1727096646866,0.3608,63407.0,63406.0,0.078868]
[1727096647573,0.080869,63405.0,63404.0,0.131]
[1727096647860,0.002,63405.0,63404.0,0.079871]
[1727096648054,0.3628,63407.0,63406.0,0.001]
[1727096648456,0.441667,63407.0,63406.0,0.001]
[1727096648853,0.078868,63406.0,63405.0,0.078869]
[1727096649859,0.078865,63409.0,63404.0,0.002]
[1727096650069,0.0477,63411.0,63410.0,0.078863]
[1727096651167,1.12082,63411.0,63407.0,0.1259864]
[1727096651366,0.078867,63407.0,63406.0,0.0471204]
[1727096651571,0.078868,63406.0,63405.0,0.0471204]
[1727096652259,0.078868,63406.0,63403.0,0.06275612]
[1727096652957,0.080868,63406.0,63405.0,0.001]
[1727096653154,0.080868,63406.0,63405.0,0.079869]
[1727096653667,0.002,63406.0,63405.0,0.288738]
[1727096653865,0.002,63406.0,63405.0,0.38715438]
[1727096654070,0.002,63406.0,63405.0,0.28857787]
[1727096654268,0.002,63406.0,63405.0,0.30944405]
[1727096654462,0.0477,63411.0,63408.0,0.078866]
[1727096654664,0.0477,63411.0,63410.0,0.06302226]
[1727096654870,0.0477,63411.0,63409.0,0.06302226]
[1727096655068,0.47312,63410.0,63405.0,0.001]
[1727096655374,0.078864,63409.0,63408.0,0.06302592]
[1727096655571,0.157734,63407.0,63406.0,0.06302592]
[1727096655773,0.157734,63407.0,63405.0,0.002]
[1727096655774,0.078868,63406.0,63405.0,0.002]
[1727096655963,0.552028,63406.0,63405.0,0.06403666]
[1727096656163,1.152028,63406.0,63405.0,0.06403666]
[1727096656469,1.230896,63406.0,63405.0,0.06303438]
[1727096656769,1.230896,63406.0,63399.0,0.078877]
[1727096656770,0.078876,63400.0,63399.0,0.078877]
[1727096656964,0.439676,63400.0,63399.0,0.078877]
[1727096657164,0.078879,63397.0,63396.0,0.15765783]
[1727096658077,0.0457,63399.0,63398.0,0.078878]
[1727096658474,0.5189,63399.0,63398.0,0.078878]
[1727096659166,0.0457,63399.0,63398.0,0.078878]
[1727096659373,0.599777,63399.0,63398.0,0.078878]
[1727096659873,0.126577,63399.0,63398.0,0.078878]
[1727096661265,0.0477,63399.0,63398.0,0.078878]
[1727096664662,0.002,63399.0,63398.0,0.078878]
[1727096664979,0.002,63399.0,63398.0,0.12614791]
[1727096665165,0.502,63399.0,63398.0,0.12614791]
[1727096668586,0.502,63399.0,63398.0,0.078878]
[1727096668769,0.502,63399.0,63398.0,0.17332865]
[1727096669079,0.502,63399.0,63398.0,0.27169466]
[1727096669467,0.502,63399.0,63398.0,0.17724401]
[1727096670081,0.502,63399.0,63398.0,0.27177883]
[1727096671471,0.502,63399.0,63398.0,0.17724401]
[1727096671672,0.502,63399.0,63398.0,0.27178151]
[1727096671881,0.502,63399.0,63398.0,0.28715573]
[1727096672174,0.502,63399.0,63398.0,0.19261823]
[1727096672579,0.502,63399.0,63398.0,0.28715573]
[1727096672772,0.502,63399.0,63398.0,0.19261823]
[1727096673379,0.580877,63399.0,63398.0,0.09836601]
[1727096673583,0.580877,63399.0,63389.0,0.23859123]
[1727096673584,0.078882,63395.0,63394.0,0.0945375]
[1727096673777,0.13,63395.0,63388.0,0.09455567]
[1727096674075,0.3608,63397.0,63387.0,0.3268]
[1727096674076,0.208891,63388.0,63387.0,0.3268]
[1727096674283,0.208891,63388.0,63384.0,0.36316622]
[1727096674478,0.13,63388.0,63384.0,0.36316622]
[1727096674678,0.13,63388.0,63387.0,0.078892]
[1727096674873,0.3608,63389.0,63387.0,0.078892]
[1727096675068,0.439689,63389.0,63388.0,0.007]
[1727096675490,0.439689,63389.0,63387.0,0.078892]
[1727096675683,0.078891,63388.0,63387.0,0.078892]
[1727096676279,0.071894,63385.0,63384.0,0.439696]
[1727096676492,0.065894,63385.0,63384.0,0.439696]
[1727096677181,0.059894,63385.0,63384.0,0.439696]
[1727096678086,0.052894,63385.0,63384.0,0.439696]
[1727096678880,0.052894,63385.0,63384.0,0.458696]
[1727096678881,0.054894,63385.0,63384.0,0.458696]
[1727096682478,0.054894,63385.0,63384.0,0.097896]
[1727096686694,0.554894,63385.0,63384.0,0.097896]
[1727096689980,0.502,63385.0,63384.0,0.097896]
[1727096690285,0.502,63385.0,63384.0,0.537592]
[1727096690892,0.45464172,63385.0,63384.0,0.67202521]
[1727096691094,0.39939089,63385.0,63384.0,0.67202521]
[1727096695996,0.39939089,63385.0,63384.0,0.31122521]
[1727096696195,0.39939089,63385.0,63384.0,0.67202521]
[1727096696397,0.39939089,63385.0,63384.0,0.31122521]
[1727096696602,0.39939089,63385.0,63384.0,0.67202521]
[1727096698908,0.39939089,63385.0,63384.0,0.458696]
[1727096702212,0.39939089,63385.0,63384.0,0.48336185]
[1727096702511,0.39939089,63385.0,63384.0,0.5802086]
[1727096704409,0.39939089,63385.0,63384.0,1.1324246]
[1727096704610,0.15820222,63385.0,63384.0,1.96950151]
[1727096704814,0.15820222,63385.0,63384.0,2.08466524]
[1727096705314,0.15820222,63385.0,63384.0,1.48466244]
[1727096705613,0.15820222,63385.0,63384.0,1.40576644]
[1727096705820,0.15820222,63385.0,63384.0,0.5802058]
[1727096706008,0.15820222,63385.0,63384.0,0.61674825]
[1727096706517,0.15820222,63385.0,63384.0,0.59208187]
[1727096708011,0.15820222,63385.0,63384.0,0.55554219]
[1727096709117,0.15820222,63385.0,63384.0,0.68554219]
[1727096709315,0.15820222,63385.0,63384.0,0.80476871]
[1727096709518,0.15820222,63385.0,63384.0,0.71020891]
[1727096711910,0.15820222,63385.0,63384.0,0.58020891]
[1727096712525,0.15820222,63385.0,63384.0,0.55554219]
[1727096714614,0.15820222,63385.0,63384.0,0.458696]
[1727096714915,0.15820222,63385.0,63384.0,0.588696]
[1727096715508,0.15820222,63385.0,63384.0,0.68543003]
[1727096716123,0.15820222,63385.0,63384.0,0.588696]
[1727096716625,0.15820222,63385.0,63384.0,0.667592]
[1727096716929,0.15820222,63385.0,63384.0,0.9834008]
[1727096717312,0.15820222,63385.0,63384.0,1.00806453]
[1727096717728,0.15820222,63385.0,63384.0,0.92916853]
[1727096717926,0.15820222,63385.0,63384.0,0.85027253]
[1727096718123,0.15820222,63385.0,63384.0,0.61335973]
[1727096718622,0.15820222,63385.0,63384.0,0.69225573]
[1727096721613,0.11084724,63385.0,63384.0,1.16431376]
[1727096723024,0.11084724,63385.0,63384.0,1.13965003]
[1727096723324,0.11084724,63385.0,63384.0,1.1643141]
[1727096724831,0.11084724,63385.0,63384.0,1.16431407]
[1727096725418,0.11084724,63385.0,63384.0,1.03044699]
[1727096726326,0.11084724,63385.0,63384.0,0.98044699]
[1727096726518,0.11084724,63385.0,63384.0,0.98044701]
[1727096726711,0.05559975,63385.0,63384.0,1.11382182]
[1727096726913,0.05559975,63385.0,63384.0,1.19271782]
[1727096727214,0.05559975,63385.0,63384.0,1.11382182]
[1727096727612,0.05559975,63385.0,63384.0,1.19271782]
[1727096728017,0.05559975,63385.0,63384.0,1.11382182]
[1727096728230,0.05559975,63385.0,63384.0,1.06655559]
[1727096728722,0.05559975,63385.0,63384.0,1.19271782]
[1727096729026,0.05559975,63385.0,63384.0,0.93318078]
[1727096729912,0.05559975,63385.0,63384.0,0.93318066]
[1727096730329,0.05559975,63385.0,63384.0,0.9315857]
[1727096730529,0.05559975,63385.0,63384.0,1.16730626]
[1727096733166,0.05559975,63385.0,63384.0,1.14264232]
[1727096733323,0.05559975,63385.0,63384.0,1.1673055]
[1727096734828,0.05559975,63385.0,63384.0,0.95687174]
[1727096735029,0.05559975,63385.0,63384.0,1.16717561]
[1727096735837,0.05559975,63385.0,63384.0,1.08827961]
[1727096736019,0.05559975,63385.0,63384.0,1.18831295]
[1727096736224,0.05559975,63385.0,63384.0,0.93683519]
[1727096736834,0.05559975,63385.0,63384.0,0.93700677]
[1727096737032,0.05559975,63385.0,63384.0,0.80400065]
[1727096737220,0.05559975,63385.0,63384.0,0.93698458]
[1727096737420,0.05559975,63385.0,63384.0,0.61476705]
[1727096737724,0.51029975,63385.0,63380.0,0.01577618]
[1727096737934,0.51029975,63385.0,63378.0,0.1103376]
[1727096737935,0.08,63383.0,63381.0,0.09644454]
[1727096738127,0.08,63383.0,63378.0,0.078903]
[1727096738724,0.08,63383.0,63381.0,0.09459045]
[1727096738725,0.158897,63383.0,63381.0,0.09459045]
[1727096738923,0.158897,63383.0,63380.0,0.09459045]
[1727096739226,0.159897,63383.0,63381.0,0.10759045]
[1727096739430,0.159897,63383.0,63381.0,0.013]
[1727096739739,0.159897,63383.0,63380.0,0.10759045]
[1727096739939,0.159897,63383.0,63380.0,0.013]
[1727096740234,0.158897,63383.0,63380.0,0.0919]
[1727096740436,0.158897,63383.0,63382.0,0.07876886]
[1727096740437,0.160897,63383.0,63382.0,0.07876886]
[1727096741637,0.082,63383.0,63382.0,0.078898]
[1727096741839,0.082,63383.0,63382.0,0.15766686]
[1727096742029,0.081,63383.0,63382.0,0.15766686]
[1727096742230,0.082,63383.0,63382.0,0.15766686]
[1727096742429,0.082,63383.0,63382.0,0.078898]
[1727096742939,0.082,63383.0,63382.0,0.082898]
[1727096743433,0.082,63383.0,63382.0,0.084898]
[1727096743844,0.160897,63383.0,63382.0,0.084898]
[1727096744736,0.082,63383.0,63382.0,0.084898]
[1727096746047,0.002,63383.0,63382.0,0.084898]
[1727096747546,0.160897,63383.0,63382.0,0.06895321]
[1727096747927,0.156897,63383.0,63382.0,0.06895321]
[1727096748127,0.156897,63383.0,63382.0,0.14785121]
[1727096750440,0.156897,63383.0,63382.0,0.06895321]
[1727096750441,0.709114,63383.0,63382.0,0.06895321]
[1727096750643,0.709114,63383.0,63382.0,0.006]
[1727096750838,0.630217,63383.0,63382.0,0.084898]
[1727096751632,0.156897,63383.0,63382.0,0.084898]
[1727096753944,0.076897,63383.0,63382.0,0.084898]
[1727096756035,0.076897,63383.0,63382.0,0.10044356]
[1727096756646,0.076897,63383.0,63382.0,0.084898]
[1727096757344,0.156897,63383.0,63382.0,0.084898]
[1727096759248,0.076897,63383.0,63382.0,0.084898]
[1727096759440,0.076897,63383.0,63382.0,0.14785121]
[1727096760439,0.3608,63384.0,63382.0,0.14785121]
[1727096760440,0.3608,63384.0,63383.0,0.078897]
[1727096760636,0.05559975,63385.0,63384.0,0.236688]
[1727096760843,0.0037,63392.0,63391.0,0.078887]
[1727096761041,0.0037,63401.0,63391.0,0.53610322]
[1727096761244,0.3608,63403.0,63400.0,0.08]
[1727096761450,0.3608,63403.0,63402.0,0.04719945]
[1727096762140,0.439672,63403.0,63402.0,0.04719945]
[1727096763242,0.449672,63403.0,63402.0,0.04719945]
[1727096763439,0.3708,63403.0,63402.0,0.04720355]
[1727096763640,0.3708,63403.0,63401.0,0.04720355]
[1727096763840,0.3708,63403.0,63391.0,0.3608]
[1727096763841,0.078874,63401.0,63400.0,0.04720355]
[1727096764044,0.158874,63401.0,63400.0,0.04720355]
[1727096764344,0.158874,63401.0,63400.0,0.04820355]
[1727096764851,0.519674,63401.0,63400.0,0.04720355]
[1727096765051,0.527674,63401.0,63400.0,0.04820355]
[1727096765450,0.527674,63401.0,63400.0,0.001]
[1727096766452,0.535674,63401.0,63400.0,0.001]
[1727096767743,0.614548,63401.0,63400.0,0.001]
[1727096768654,0.535674,63401.0,63400.0,0.001]
[1727096769042,1.608874,63401.0,63400.0,0.001]
[1727096770249,1.008874,63401.0,63400.0,0.001]
[1727096770451,1.087748,63401.0,63400.0,0.001]
[1727096771060,0.078876,63400.0,63395.0,0.04720355]
[1727096771246,0.08,63396.0,63395.0,0.04720355]
[1727096771558,0.078882,63395.0,63394.0,0.04720355]
[1727096771746,0.237764,63395.0,63394.0,0.04720355]
[1727096772054,0.078888,63390.0,63389.0,0.04720355]
[1727096772251,0.316664,63390.0,63389.0,0.04720355]
[1727096772552,0.157778,63389.0,63388.0,0.04720355]
[1727096772859,0.236673,63388.0,63384.0,0.06294486]
[1727096773060,0.078902,63379.0,63376.0,0.0037]
[1727096773246,0.078896,63384.0,63368.0,0.07868108]
[1727096773247,0.078911,63372.0,63368.0,0.07868108]
[1727096773559,0.548311,63372.0,63368.0,0.078916]
[1727096774056,0.074911,63372.0,63368.0,0.078916]
[1727096774257,0.069911,63372.0,63368.0,0.078916]
[1727096774455,0.199911,63372.0,63368.0,0.078916]
[1727096774654,0.200911,63372.0,63371.0,0.01236647]
[1727096775849,0.201911,63372.0,63371.0,0.01236647]
[1727096778358,0.071911,63372.0,63371.0,0.09127847]
[1727096779358,0.071911,63372.0,63371.0,0.01236647]
[1727096780364,0.071911,63372.0,63371.0,0.09127847]
[1727096781351,0.432711,63372.0,63371.0,0.09127847]
[1727096783364,0.432711,63372.0,63371.0,0.01236647]
[1727096783663,0.641622,63372.0,63371.0,0.01236647]
[1727096784060,0.562711,63372.0,63371.0,0.01236647]
[1727096784655,0.641622,63372.0,63371.0,0.01236647]
[1727096784855,0.891622,63372.0,63371.0,0.01236647]
[1727096787565,0.761622,63372.0,63371.0,0.01236647]
[1727096789069,0.761622,63372.0,63371.0,0.09127847]
[1727096791573,0.400822,63372.0,63371.0,0.09127847]
[1727096791864,0.761622,63372.0,63371.0,0.09127847]
[1727096792570,0.761622,63372.0,63371.0,0.01236647]
[1727096793070,0.761622,63372.0,63371.0,0.09127847]
[1727096794371,0.682711,63372.0,63371.0,0.09127847]
[1727096796358,0.762711,63372.0,63371.0,0.09127847]
[1727096796565,0.841622,63372.0,63371.0,0.09127847]
[1727096796868,0.841622,63372.0,63365.0,0.08]
[1727096796869,1.1662,63372.0,63361.0,0.07868108]
[1727096797069,0.519724,63362.0,63361.0,0.078924]
[1727096797277,0.519724,63362.0,63358.0,0.0933]
[1727096797278,0.078927,63359.0,63358.0,0.0933]
[1727096797880,0.078927,63359.0,63358.0,0.172228]
[1727096798372,0.079927,63359.0,63358.0,0.172228]
[1727096798973,0.079927,63359.0,63358.0,0.0933]
[1727096800976,0.080927,63359.0,63358.0,0.0933]
[1727096801575,0.080927,63359.0,63358.0,0.1882172]
[1727096803171,0.080927,63359.0,63358.0,0.2671452]
[1727096803680,0.080927,63359.0,63358.0,0.36173948]
[1727096804380,0.080927,63359.0,63358.0,0.2671452]
[1727096804680,0.080927,63359.0,63358.0,0.36173948]
[1727096804879,0.080927,63359.0,63358.0,0.2671452]
[1727096805777,0.079927,63359.0,63358.0,0.2671452]
[1727096806873,0.078927,63359.0,63358.0,0.2671452]
[1727096807375,0.36228,63362.0,63358.0,0.2682172]
[1727096807570,0.3608,63362.0,63361.0,0.23773055]
[1727096807772,0.3608,63362.0,63361.0,0.2538412]
[1727096808482,0.078917,63367.0,63364.0,0.07892]
[1727096808775,0.078913,63371.0,63364.0,0.07892]
[1727096808776,0.078913,63370.0,63366.0,0.078917]
[1727096808980,0.078913,63370.0,63367.0,0.078917]
[1727096809566,0.078914,63369.0,63367.0,0.078917]
[1727096810277,0.078916,63368.0,63367.0,0.078917]
[1727096811571,0.086916,63368.0,63367.0,0.078917]
[1727096812674,0.095916,63368.0,63367.0,0.078917]
[1727096813707,0.017,63368.0,63367.0,0.078917]
[1727096821187,0.095916,63368.0,63367.0,0.078917]
[1727096821395,0.456716,63368.0,63367.0,0.078917]
[1727096821584,0.3778,63368.0,63367.0,0.078917]
[1727096821782,0.3778,63368.0,63367.0,0.157834]
[1727096821982,0.3778,63368.0,63367.0,0.17522369]
[1727096822590,0.3778,63368.0,63367.0,0.19989852]
[1727096822990,0.3778,63368.0,63367.0,0.19989851]
[1727096823484,0.3778,63368.0,63367.0,0.17522369]
[1727096829495,0.017,63368.0,63367.0,0.17522369]
[1727096830883,0.095916,63368.0,63367.0,0.17522369]
[1727096834099,0.017,63368.0,63367.0,0.17522369]
[1727096837401,0.017,63368.0,63367.0,0.26981797]
[1727096839906,0.095916,63368.0,63367.0,0.26981797]
[1727096840296,0.095916,63368.0,63367.0,0.17522369]
[1727096841113,0.095916,63368.0,63367.0,0.175172]
[1727096841399,0.095916,63368.0,63367.0,0.26976628]
[1727096841801,0.095916,63368.0,63367.0,0.17518039]
[1727096841996,0.095916,63368.0,63367.0,0.26977467]
[1727096845602,0.017,63368.0,63367.0,0.17518039]
[1727096845807,0.0037,63375.0,63374.0,0.078908]
[1727096846008,0.0037,63382.0,63374.0,0.75494355]
[1727096846302,0.3631674,63385.0,63381.0,0.08]
[1727096846493,0.3631674,63385.0,63383.0,0.07881682]
[1727096847304,0.3631674,63385.0,63383.0,0.15771282]
[1727096847505,0.3631674,63385.0,63383.0,0.078896]
[1727096847900,0.3631674,63385.0,63383.0,0.15771282]
[1727096848501,0.3771674,63385.0,63384.0,0.078896]
[1727096849103,0.3771674,63385.0,63384.0,0.158896]
[1727096849104,0.3891674,63385.0,63384.0,0.158896]
[1727096849500,0.3891674,63385.0,63384.0,0.078896]
[1727096850909,0.3751674,63385.0,63384.0,0.078896]
[1727096851105,0.4520614,63385.0,63384.0,0.079896]
[1727096851407,0.4620614,63385.0,63384.0,0.079896]
[1727096852110,0.5409554,63385.0,63384.0,0.06396645]
[1727096852300,0.5409554,63385.0,63384.0,0.001]
[1727096852502,1.6142754,63385.0,63381.0,0.06296645]
[1727096852806,0.078904,63377.0,63376.0,0.078905]
[1727096853018,0.439704,63377.0,63376.0,0.078905]
[1727096854106,0.439704,63377.0,63368.0,0.078914]
[1727096854107,0.078911,63372.0,63371.0,0.078911]
[1727096854307,0.078917,63367.0,63366.0,0.06297927]
[1727096854506,0.078917,63367.0,63357.0,0.3608]
[1727096854507,0.078919,63365.0,63364.0,0.06297927]
[1727096854716,0.08,63365.0,63363.0,0.078922]
[1727096855913,0.084,63365.0,63363.0,0.078922]
[1727096856103,0.078921,63364.0,63363.0,0.078922]
[1727096856417,0.208921,63364.0,63363.0,0.078922]
[1727096857527,0.212921,63364.0,63363.0,0.078922]
[1727096858815,0.078925,63361.0,63359.0,0.06297927]
[1727096859019,0.439725,63361.0,63359.0,0.06297927]
[1727096859920,0.439725,63361.0,63360.0,0.078925]
[1727096860116,0.078927,63359.0,63358.0,0.06297927]
[1727096860325,0.236799,63354.0,63353.0,1e-08]
[1727096860537,0.078947,63343.0,63342.0,0.0037]
[1727096860815,0.078947,63343.0,63336.0,0.078955]
[1727096860816,0.078955,63337.0,63336.0,0.078955]
[1727096861010,0.078957,63335.0,63334.0,0.0477]
[1727096861321,0.078957,63335.0,63331.0,0.05166851]
[1727096861322,0.07896,63332.0,63331.0,0.00236851]
[1727096861520,0.078962,63331.0,63330.0,0.078963]
[1727096862022,0.077962,63331.0,63330.0,0.078963]
[1727096862223,0.209957,63335.0,63330.0,0.078963]
[1727096862515,0.001,63332.0,63331.0,0.001]
[1727096863109,0.001,63332.0,63331.0,0.079962]
[1727096864224,0.13,63335.0,63331.0,0.078962]
[1727096864419,0.13,63335.0,63310.0,0.07914522]
[1727096864420,0.078963,63331.0,63322.0,0.078973]
[1727096864617,0.13,63323.0,63315.0,0.0037]
[1727096864814,0.3608,63318.0,63317.0,0.078979]
[1727096865015,0.3608,63318.0,63312.0,0.439785]
[1727096865327,0.07898,63316.0,63312.0,0.078985]
[1727096865624,0.07898,63316.0,63303.0,0.0037]
[1727096865625,0.13,63314.0,63313.0,0.078984]
[1727096867823,0.131,63314.0,63313.0,0.078984]
[1727096868019,0.001,63314.0,63313.0,0.078984]
[1727096868217,0.002,63314.0,63313.0,0.078984]
[1727096871629,0.001,63314.0,63313.0,0.078984]
[1727096875830,0.001,63314.0,63313.0,0.128284]
[1727096876226,0.001,63314.0,63313.0,1.628284]
[1727096876825,0.001,63314.0,63313.0,0.128284]
[1727096881436,0.001,63314.0,63313.0,0.0493]
[1727096882036,0.079983,63314.0,63313.0,0.0493]
[1727096882427,0.079983,63314.0,63313.0,0.128284]
[1727096884129,0.079983,63314.0,63312.0,0.0472]
[1727096884632,0.079983,63314.0,63312.0,0.126185]
[1727096885039,0.079983,63314.0,63313.0,0.078984]
[1727096885237,0.078983,63314.0,63313.0,0.078984]
[1727096885434,0.080983,63314.0,63313.0,0.078984]
[1727096886647,0.002,63314.0,63313.0,0.078984]
[1727096887034,0.001,63314.0,63313.0,0.078984]
[1727096888840,0.079983,63314.0,63313.0,0.078984]
[1727096891437,0.079983,63314.0,63313.0,0.15769832]
[1727096891646,0.079983,63314.0,63313.0,0.07871432]
[1727096891946,0.158966,63314.0,63313.0,0.07871432]
[1727096892249,0.157968,63313.0,63312.0,0.07871432]
[1727096892435,0.15798,63308.0,63307.0,0.09465195]
[1727096892634,0.15798,63308.0,63307.0,0.09721539]
[1727096892635,0.51878,63308.0,63307.0,0.09721539]
[1727096892940,0.4078,63308.0,63303.0,0.07886111]
[1727096893138,0.208995,63304.0,63303.0,0.07886111]
[1727096893333,0.208995,63304.0,63302.0,0.07886111]
[1727096893334,0.078997,63303.0,63302.0,0.07886111]
[1727096893538,0.078999,63301.0,63300.0,0.0023695]
[1727096893744,0.439799,63301.0,63300.0,0.09990643]
[1727096894230,0.439799,63301.0,63300.0,0.17876588]
[1727096894430,0.439799,63301.0,63300.0,0.09990643]
[1727096894641,0.439799,63301.0,63300.0,0.0813695]
[1727096894946,0.440799,63301.0,63300.0,0.0813695]
[1727096895135,0.441799,63301.0,63300.0,0.0813695]
[1727096896550,0.441799,63301.0,63276.0,0.0008]
[1727096896551,0.079011,63292.0,63276.0,0.0008]
[1727096896863,0.079011,63292.0,63265.0,0.3608]
[1727096896864,0.4908,63277.0,63268.0,0.0946]
[1727096897053,0.209036,63272.0,63268.0,0.17364]
[1727096898547,0.079037,63271.0,63268.0,0.0946]
[1727096900039,0.002,63272.0,63268.0,0.17364]